[Event "Weekend I 2025"]
[Site "Uppsala, Sweden"]
[Date "2025.06.27"]
[Round "1.13"]
[White "Torres, Lucas"]
[Black "Pinheiro Diamant, Jonatan"]
[Result "1-0"]
[TimeControl "90 min + increment of 30 sec starting move 1"]
[WhiteFideId "1769464"]
[BlackFideId "1734628"]
[WhiteElo "1897"]
[BlackElo "1911"]

1. e4 {[%clk 01:30:57]} {[%emt 00:00:03]} e5 {[%clk 01:30:49]} {[%emt
00:00:10]} 2. Nc3 {[%clk 01:31:19]} {[%emt 00:00:09]} Nf6 {[%clk 01:30:55]}
{[%emt 00:00:23]} 3. f4 {[%clk 01:31:40]} {[%emt 00:00:10]} d5 {[%clk
01:29:21]} {[%emt 00:02:03]} 4. fxe5 {[%clk 01:31:26]} {[%emt 00:00:45]} Nxe4
{[%clk 01:29:34]} {[%emt 00:00:16]} 5. Qf3 {[%clk 01:31:40]} {[%emt 00:00:17]}
f5 {[%clk 01:22:56]} {[%emt 00:07:07]} 6. d3 {[%clk 01:31:15]} {[%emt
00:00:55]} Nxc3 {[%clk 01:21:25]} {[%emt 00:02:01]} 7. bxc3 {[%clk 01:31:07]}
{[%emt 00:00:39]} Bc5 {[%clk 01:15:11]} {[%emt 00:06:41]} 8. d4 {[%clk
01:30:01]} {[%emt 00:01:37]} Bb6 {[%clk 01:14:34]} {[%emt 00:01:08]} 9. Qh5+
{[%clk 01:20:40]} {[%emt 00:09:49]} g6 {[%clk 01:10:20]} {[%emt 00:04:49]} 10.
Qh6 {[%clk 01:20:32]} {[%emt 00:00:35]} Qe7 {[%clk 01:04:59]} {[%emt 00:05:50]}
11. Bg5 {[%clk 01:01:56]} {[%emt 00:19:06]} Qf8 {[%clk 01:05:01]} {[%emt
00:00:29]} 12. Qh4 {[%clk 00:53:09]} {[%emt 00:09:17]} Qa3 {[%clk 01:01:53]}
{[%emt 00:03:34]} 13. Ne2 {[%clk 00:51:12]} {[%emt 00:02:31]} O-O {[%clk
00:56:15]} {[%emt 00:06:08]} 14. Bc1 {[%clk 00:43:05]} {[%emt 00:08:37]} Qa4
{[%clk 00:51:06]} {[%emt 00:05:39]} 15. Bh6 {[%clk 00:42:37]} {[%emt 00:00:59]}
Re8 {[%clk 00:48:04]} {[%emt 00:03:31]} 16. Qf6 {[%clk 00:41:11]} {[%emt
00:01:56]} Qd7 {[%clk 00:47:47]} {[%emt 00:00:47]} 17. Nf4 {[%clk 00:28:47]}
{[%emt 00:12:55]} Qf7 {[%clk 00:43:34]} {[%emt 00:04:43]} 18. Qxf7+ {[%clk
00:22:24]} {[%emt 00:06:52]} Kxf7 {[%clk 00:44:02]} {[%emt 00:00:02]} 19. Nxd5
{[%clk 00:21:36]} {[%emt 00:01:19]} Ba5 {[%clk 00:42:31]} {[%emt 00:02:00]} 20.
Bd2 {[%clk 00:15:37]} {[%emt 00:06:28]} Nd7 {[%clk 00:35:23]} {[%emt 00:07:38]}
21. c4 {[%clk 00:11:18]} {[%emt 00:04:50]} Bb6 {[%clk 00:31:55]} {[%emt
00:03:59]} 22. Nxb6 {[%clk 00:05:42]} {[%emt 00:06:06]} axb6 {[%clk 00:31:48]}
{[%emt 00:00:37]} 23. Kf2 {[%clk 00:05:36]} {[%emt 00:00:36]} Ra4 {[%clk
00:30:14]} {[%emt 00:02:03]} 24. c3 {[%clk 00:04:38]} {[%emt 00:01:29]} Nf8
{[%clk 00:29:06]} {[%emt 00:01:38]} 25. Bd3 {[%clk 00:03:48]} {[%emt 00:01:20]}
Bd7 {[%clk 00:27:44]} {[%emt 00:01:51]} 26. Bc2 {[%clk 00:03:56]} {[%emt
00:00:23]} Ra6 {[%clk 00:24:49]} {[%emt 00:03:24]} 27. Bb3 {[%clk 00:04:06]}
{[%emt 00:00:21]} Kg7 {[%clk 00:23:48]} {[%emt 00:01:31]} 28. h4 {[%clk
00:04:23]} {[%emt 00:00:12]} h6 {[%clk 00:22:19]} {[%emt 00:01:59]} 29. Rhe1
{[%clk 00:04:21]} {[%emt 00:00:33]} Rea8 {[%clk 00:21:15]} {[%emt 00:01:34]} 30.
d5 {[%clk 00:02:37]} {[%emt 00:02:14]} Ba4 {[%clk 00:18:55]} {[%emt 00:02:50]}
31. Rab1 {[%clk 00:02:56]} {[%emt 00:00:12]} Nd7 {[%clk 00:13:17]} {[%emt
00:06:06]} 32. Be3 {[%clk 00:02:42]} {[%emt 00:00:44]} Bxb3 {[%clk 00:09:54]}
{[%emt 00:03:53]} 33. axb3 {[%clk 00:03:08]} {[%emt 00:00:04]} Ra2+ {[%clk
00:08:07]} {[%emt 00:02:17]} 34. Kf1 {[%clk 00:02:14]} {[%emt 00:01:22]} Rc2
{[%clk 00:06:02]} {[%emt 00:02:36]} 35. e6 {[%clk 00:01:45]} {[%emt 00:01:01]}
Nc5 {[%clk 00:04:54]} {[%emt 00:01:38]} 36. Bd4+ {[%clk 00:00:46]} {[%emt
00:01:29]} Kf8 {[%clk 00:05:03]} {[%emt 00:00:21]} 37. Ra1 {[%clk 00:00:44]}
{[%emt 00:00:31]} Raa2 {[%clk 00:02:45]} {[%emt 00:02:49]} 38. Rxa2 {[%clk
00:00:42]} {[%emt 00:00:32]} Rxa2 {[%clk 00:03:13]} {[%emt 00:00:02]} 39. Bg7+
{[%clk 00:00:42]} {[%emt 00:00:29]} Ke8 {[%clk 00:02:25]} {[%emt 00:01:23]} 40.
Bxh6 {[%clk 00:00:46]} {[%emt 00:00:22]} Nxb3 {[%clk 00:02:51]} {[%emt
00:00:04]} 41. Bf4 {[%clk 00:00:45]} {[%emt 00:00:34]} Nd2+ {[%clk 00:02:02]}
{[%emt 00:01:15]} 42. Bxd2 Rxd2 {[%clk 00:02:30]} 43. Re3 {[%clk 00:00:44]}
{[%emt 00:00:16]} Ke7 {[%clk 00:02:50]} {[%emt 00:00:08]} 44. g4 {[%clk
00:00:32]} {[%emt 00:00:47]} c6 {[%clk 00:02:37]} {[%emt 00:00:38]} 45. Ke1
{[%clk 00:00:38]} {[%emt 00:00:27]} Ra2 {[%clk 00:01:46]} {[%emt 00:01:17]} 46.
d6+ {[%clk 00:01:06]} {[%emt 00:00:03]} Ke8 {[%clk 00:01:56]} {[%emt 00:00:20]}
47. gxf5 {[%clk 00:01:24]} {[%emt 00:00:12]} gxf5 {[%clk 00:02:03]} {[%emt
00:00:27]} 48. Rg3 {[%clk 00:01:34]} {[%emt 00:00:22]} Kf8 {[%clk 00:02:12]}
{[%emt 00:00:16]} 49. e7+ {[%clk 00:01:18]} {[%emt 00:00:46]} Kf7 {[%clk
00:02:24]} {[%emt 00:00:19]} 50. Rg7+ {[%clk 00:01:40]} {[%emt 00:00:07]} 1-0

[Event "Weekend I 2025"]
[Site "Uppsala, Sweden"]
[Date "2025.06.27"]
[Round "1.14"]
[White "Wickstrom, Carina"]
[Black "Eriksson, Joel"]
[Result "1-0"]
[TimeControl "90 min + increment of 30 sec starting move 1"]
[WhiteFideId "1743201"]
[BlackFideId "1729233"]
[WhiteElo "1910"]
[BlackElo "1895"]

1. Nf3 {[%clk 01:30:51]} {[%emt 00:00:08]} f5 {[%clk 01:30:52]} {[%emt
00:00:09]} 2. d3 {[%clk 01:30:58]} {[%emt 00:00:22]} Nc6 {[%clk 01:29:54]}
{[%emt 00:01:28]} 3. e4 {[%clk 01:28:07]} {[%emt 00:03:22]} e5 {[%clk
01:29:22]} {[%emt 00:01:02]} 4. g3 {[%clk 01:23:36]} {[%emt 00:05:01]} Bc5
{[%clk 01:27:48]} {[%emt 00:02:04]} 5. Nc3 {[%clk 01:20:34]} {[%emt 00:03:32]}
Nf6 {[%clk 01:25:14]} {[%emt 00:03:04]} 6. exf5 {[%clk 01:16:34]} {[%emt
00:04:30]} d5 {[%clk 01:22:53]} {[%emt 00:02:50]} 7. Bh3 {[%clk 01:14:41]}
{[%emt 00:02:23]} O-O {[%clk 01:16:13]} {[%emt 00:07:09]} 8. O-O {[%clk
01:12:49]} {[%emt 00:02:24]} Qe8 {[%clk 00:49:11]} {[%emt 00:27:31]} 9. Nh4
{[%clk 01:01:11]} {[%emt 00:12:08]} Nd4 {[%clk 00:46:48]} {[%emt 00:02:54]} 10.
Ne2 {[%clk 00:59:13]} {[%emt 00:02:27]} Nxe2+ {[%clk 00:39:33]} {[%emt
00:07:46]} 11. Qxe2 {[%clk 00:57:07]} {[%emt 00:02:36]} e4 {[%clk 00:39:41]}
{[%emt 00:00:21]} 12. Bg5 {[%clk 00:47:40]} {[%emt 00:09:57]} b6 {[%clk
00:37:57]} {[%emt 00:02:14]} 13. Bxf6 {[%clk 00:44:06]} {[%emt 00:04:05]} Rxf6
{[%clk 00:38:14]} {[%emt 00:00:13]} 14. dxe4 {[%clk 00:42:19]} {[%emt
00:02:17]} dxe4 {[%clk 00:37:05]} {[%emt 00:01:38]} 15. Bg2 {[%clk 00:40:01]}
{[%emt 00:02:48]} Bb7 {[%clk 00:35:59]} {[%emt 00:01:37]} 16. Kh1 {[%clk
00:30:54]} {[%emt 00:09:36]} Rd8 {[%clk 00:34:40]} {[%emt 00:01:48]} 17. Rad1
{[%clk 00:28:49]} {[%emt 00:02:36]} Rxd1 {[%clk 00:34:46]} {[%emt 00:00:25]} 18.
Rxd1 {[%clk 00:29:02]} {[%emt 00:00:16]} Rf8 {[%clk 00:31:03]} {[%emt
00:04:13]} 19. Re1 {[%clk 00:26:15]} {[%emt 00:03:17]} g5 {[%clk 00:27:00]}
{[%emt 00:04:33]} 20. fxg6 {[%clk 00:24:39]} {[%emt 00:02:06]} Rxf2 {[%clk
00:25:46]} {[%emt 00:01:44]} 21. Qc4+ {[%clk 00:20:52]} {[%emt 00:04:17]} Kg7
{[%clk 00:25:03]} {[%emt 00:01:13]} 22. gxh7 {[%clk 00:16:37]} {[%emt
00:04:46]} Kxh7 {[%clk 00:24:49]} {[%emt 00:00:43]} 23. b4 {[%clk 00:15:32]}
{[%emt 00:01:35]} Bd6 {[%clk 00:24:16]} {[%emt 00:01:03]} 24. Bxe4+ {[%clk
00:09:19]} {[%emt 00:06:44]} Bxe4+ {[%clk 00:24:22]} {[%emt 00:00:24]} 25. Rxe4
{[%clk 00:09:35]} {[%emt 00:00:14]} Qf8 {[%clk 00:17:04]} {[%emt 00:07:48]} 26.
Qd3 {[%clk 00:09:02]} {[%emt 00:01:03]} Kh6 {[%clk 00:08:19]} {[%emt 00:09:14]}
27. Re6+ {[%clk 00:07:49]} {[%emt 00:01:43]} Rf6 {[%clk 00:08:33]} {[%emt
00:00:15]} 28. Qe3+ {[%clk 00:07:06]} {[%emt 00:01:14]} Kh7 {[%clk 00:08:17]}
{[%emt 00:00:46]} 29. Qe4+ {[%clk 00:06:22]} {[%emt 00:01:14]} Kh8 {[%clk
00:08:09]} {[%emt 00:00:38]} 30. Re8 {[%clk 00:06:28]} {[%emt 00:00:24]} 1-0

[Event "Weekend I 2025"]
[Site "Uppsala, Sweden"]
[Date "2025.06.27"]
[Round "1.15"]
[White "Hammarstedt, Anders"]
[Black "Sundell, Hugo"]
[Result "0-1"]
[TimeControl "90 min + increment of 30 sec starting move 1"]
[WhiteFideId "1713400"]
[BlackFideId "1786130"]
[WhiteElo "1894"]
[BlackElo "1909"]

1. e4 {[%emt 00:00:15]} c5 {[%clk 01:30:48]} 2. Nf3 {[%clk 01:31:19]} {[%emt
00:00:09]} d6 {[%clk 01:31:14]} {[%emt 00:00:04]} 3. d4 {[%clk 01:31:45]}
{[%emt 00:00:04]} cxd4 {[%clk 01:31:40]} {[%emt 00:00:05]} 4. Nxd4 {[%clk
01:32:12]} {[%emt 00:00:02]} Nf6 {[%clk 01:31:56]} {[%emt 00:00:14]} 5. Nc3
{[%clk 01:32:32]} {[%emt 00:00:10]} a6 {[%clk 01:32:17]} {[%emt 00:00:10]} 6.
Bg5 {[%clk 01:32:57]} {[%emt 00:00:04]} e6 {[%clk 01:32:42]} {[%emt 00:00:05]}
7. Qe2 {[%clk 01:33:09]} {[%emt 00:00:18]} Be7 {[%clk 01:31:34]} {[%emt
00:01:37]} 8. h4 {[%clk 01:33:05]} {[%emt 00:00:35]} Nbd7 {[%clk 01:28:36]}
{[%emt 00:03:28]} 9. O-O-O {[%clk 01:32:17]} {[%emt 00:01:17]} b5 {[%clk
01:26:02]} {[%emt 00:03:05]} 10. Nc6 {[%clk 01:19:03]} {[%emt 00:13:45]} Qc7
{[%clk 01:25:59]} {[%emt 00:00:33]} 11. Nxe7 {[%clk 01:18:45]} {[%emt
00:00:46]} Kxe7 {[%clk 01:26:25]} {[%emt 00:00:04]} 12. a3 {[%clk 01:15:14]}
{[%emt 00:04:01]} Bb7 {[%clk 01:06:53]} {[%emt 00:20:03]} 13. Qd2 {[%clk
01:04:06]} {[%emt 00:11:38]} Rhd8 {[%clk 00:54:32]} {[%emt 00:12:50]} 14. Bxb5
{[%clk 00:57:53]} {[%emt 00:06:44]} axb5 {[%clk 00:47:54]} {[%emt 00:07:08]} 15.
Nxb5 {[%clk 00:58:05]} {[%emt 00:00:18]} Qc6 {[%clk 00:48:02]} {[%emt
00:00:22]} 16. Qb4 {[%clk 00:38:20]} {[%emt 00:20:15]} Qc5 {[%clk 00:39:38]}
{[%emt 00:08:55]} 17. Qxc5 {[%clk 00:27:44]} {[%emt 00:11:05]} dxc5 {[%clk
00:39:24]} {[%emt 00:00:44]} 18. Rxd7+ {[%clk 00:16:21]} {[%emt 00:11:53]} Kxd7
{[%clk 00:38:35]} {[%emt 00:01:19]} 19. e5 {[%clk 00:15:56]} {[%emt 00:00:54]}
h6 {[%clk 00:38:16]} {[%emt 00:00:50]} 20. Nd6 {[%clk 00:15:17]} {[%emt
00:01:10]} Kc6 {[%clk 00:36:33]} {[%emt 00:02:12]} 21. Nxf7 {[%clk 00:13:52]}
{[%emt 00:01:55]} Rd7 {[%clk 00:36:06]} {[%emt 00:00:57]} 22. Nxh6 {[%clk
00:13:37]} {[%emt 00:00:45]} gxh6 {[%clk 00:36:29]} {[%emt 00:00:08]} 23. Bxf6
{[%clk 00:13:37]} {[%emt 00:00:29]} h5 {[%clk 00:36:40]} {[%emt 00:00:19]} 24.
f3 {[%clk 00:12:41]} {[%emt 00:01:27]} Rg8 {[%clk 00:36:23]} {[%emt 00:00:46]}
25. g4 {[%clk 00:12:23]} {[%emt 00:00:48]} Kc7 {[%clk 00:35:04]} {[%emt
00:01:49]} 26. g5 {[%clk 00:11:33]} {[%emt 00:01:20]} Bxf3 {[%clk 00:35:24]}
{[%emt 00:00:09]} 27. Rf1 {[%clk 00:11:53]} {[%emt 00:00:11]} Bg4 {[%clk
00:35:34]} {[%emt 00:00:20]} 28. b3 {[%clk 00:11:12]} {[%emt 00:01:11]} Bf5
{[%clk 00:35:47]} {[%emt 00:00:17]} 29. Rf4 {[%clk 00:10:41]} {[%emt 00:01:01]}
Rd4 {[%clk 00:36:08]} {[%emt 00:00:09]} 30. Rxd4 {[%clk 00:10:14]} {[%emt
00:00:58]} cxd4 {[%clk 00:36:32]} {[%emt 00:00:06]} 31. b4 {[%clk 00:09:01]}
{[%emt 00:01:42]} Kc6 {[%clk 00:36:44]} {[%emt 00:00:17]} 32. a4 {[%clk
00:09:06]} {[%emt 00:00:26]} Ra8 {[%clk 00:36:59]} {[%emt 00:00:15]} 33. a5
{[%clk 00:09:19]} {[%emt 00:00:18]} Kb5 {[%clk 00:36:26]} {[%emt 00:01:02]} 34.
Be7 {[%clk 00:09:30]} {[%emt 00:00:19]} Rc8 {[%clk 00:36:29]} {[%emt 00:00:27]}
35. Bc5 {[%clk 00:09:49]} {[%emt 00:00:11]} Rxc5 {[%clk 00:36:12]} {[%emt
00:00:48]} 36. bxc5 {[%clk 00:10:14]} {[%emt 00:00:04]} Kxa5 {[%clk 00:36:31]}
{[%emt 00:00:10]} 37. Kd2 {[%clk 00:10:10]} {[%emt 00:00:35]} Kb5 {[%clk
00:36:59]} {[%emt 00:00:03]} 0-1

[Event "Weekend I 2025"]
[Site "Uppsala, Sweden"]
[Date "2025.06.27"]
[Round "1.16"]
[White "Svanberg, Albin"]
[Black "Andersson, Gorgen"]
[Result "0-1"]
[TimeControl "90 min + increment of 30 sec starting move 1"]
[WhiteFideId "1751921"]
[BlackFideId "1707698"]
[WhiteElo "1908"]
[BlackElo "1892"]

1. b3 {[%clk 01:30:43]} {[%emt 00:00:16]} d5 {[%clk 01:30:26]} {[%emt
00:00:35]} 2. Bb2 {[%clk 01:30:50]} {[%emt 00:00:22]} Nf6 {[%clk 01:30:40]}
{[%emt 00:00:16]} 3. e3 {[%clk 01:30:07]} {[%emt 00:01:13]} e6 {[%clk
01:28:40]} {[%emt 00:02:31]} 4. Nf3 {[%clk 01:27:53]} {[%emt 00:02:44]} Bd6
{[%clk 01:28:22]} {[%emt 00:00:47]} 5. c4 {[%clk 01:26:47]} {[%emt 00:01:36]}
c6 {[%clk 01:27:28]} {[%emt 00:01:25]} 6. Nc3 {[%clk 01:20:38]} {[%emt
00:06:39]} O-O {[%clk 01:27:12]} {[%emt 00:00:46]} 7. d4 {[%clk 01:19:24]}
{[%emt 00:01:43]} Nbd7 {[%clk 01:24:38]} {[%emt 00:03:04]} 8. Be2 {[%clk
01:06:27]} {[%emt 00:13:27]} Ne4 {[%clk 01:21:27]} {[%emt 00:03:42]} 9. Nxe4
{[%clk 01:00:35]} {[%emt 00:06:21]} dxe4 {[%clk 01:19:35]} {[%emt 00:02:22]} 10.
Nd2 {[%clk 00:59:58]} {[%emt 00:01:07]} f5 {[%clk 01:19:21]} {[%emt 00:00:45]}
11. Qc2 {[%clk 00:53:31]} {[%emt 00:06:56]} Nf6 {[%clk 01:17:37]} {[%emt
00:02:14]} 12. f3 {[%clk 00:52:54]} {[%emt 00:01:07]} Bb4 {[%clk 01:12:24]}
{[%emt 00:05:43]} 13. O-O-O {[%clk 00:44:29]} {[%emt 00:08:55]} a5 {[%clk
01:10:48]} {[%emt 00:02:07]} 14. Nb1 {[%clk 00:36:18]} {[%emt 00:08:41]} Be7
{[%clk 01:01:59]} {[%emt 00:09:19]} 15. Nc3 {[%clk 00:34:01]} {[%emt 00:02:47]}
exf3 {[%clk 00:54:51]} {[%emt 00:07:38]} 16. gxf3 {[%clk 00:33:49]} {[%emt
00:00:41]} Bd7 {[%clk 00:54:24]} {[%emt 00:00:57]} 17. e4 {[%clk 00:30:28]}
{[%emt 00:03:52]} Qc7 {[%clk 00:52:10]} {[%emt 00:02:44]} 18. e5 {[%clk
00:20:29]} {[%emt 00:10:28]} Nh5 {[%clk 00:47:24]} {[%emt 00:05:16]} 19. Qd2
{[%clk 00:18:45]} {[%emt 00:02:14]} g6 {[%clk 00:45:02]} {[%emt 00:02:52]} 20.
f4 {[%clk 00:12:56]} {[%emt 00:06:19]} Ng7 {[%clk 00:44:11]} {[%emt 00:01:22]}
21. Kb1 {[%clk 00:09:40]} {[%emt 00:03:46]} Bb4 {[%clk 00:40:22]} {[%emt
00:04:19]} 22. h4 {[%clk 00:08:13]} {[%emt 00:01:56]} a4 {[%clk 00:39:28]}
{[%emt 00:01:24]} 23. Nd5 {[%clk 00:05:15]} {[%emt 00:03:28]} cxd5 {[%clk
00:35:46]} {[%emt 00:04:12]} 24. Qxb4 {[%clk 00:05:27]} {[%emt 00:00:18]} axb3
{[%clk 00:35:50]} {[%emt 00:00:27]} 25. axb3 {[%clk 00:05:19]} {[%emt
00:00:38]} dxc4 {[%clk 00:35:16]} {[%emt 00:01:04]} 26. Bxc4 {[%clk 00:03:56]}
{[%emt 00:01:53]} Bc6 {[%clk 00:34:37]} {[%emt 00:01:08]} 27. d5 {[%clk
00:03:24]} {[%emt 00:01:02]} exd5 {[%clk 00:34:03]} {[%emt 00:01:04]} 28. Bxd5+
{[%clk 00:03:20]} {[%emt 00:00:34]} Bxd5 {[%clk 00:33:28]} {[%emt 00:01:06]} 29.
Rxd5 {[%clk 00:03:38]} {[%emt 00:00:12]} Qc6 {[%clk 00:32:53]} {[%emt
00:01:05]} 30. Rhd1 {[%clk 00:03:37]} {[%emt 00:00:30]} Rfc8 {[%clk 00:32:55]}
{[%emt 00:00:28]} 31. Qd2 {[%clk 00:01:41]} {[%emt 00:02:26]} Qa6 {[%clk
00:31:48]} {[%emt 00:01:38]} 32. Bc3 {[%clk 00:00:33]} {[%emt 00:01:38]} Qb6
{[%clk 00:30:25]} {[%emt 00:01:53]} 33. Qb2 {[%clk 00:00:36]} {[%emt 00:00:27]}
Qe3 {[%clk 00:29:00]} {[%emt 00:01:55]} 34. R5d3 {[%clk 00:00:44]} {[%emt
00:00:22]} Qxf4 {[%clk 00:28:19]} {[%emt 00:01:10]} 35. e6 {[%clk 00:00:32]}
{[%emt 00:00:42]} Nxe6 {[%clk 00:26:48]} {[%emt 00:02:01]} 36. Re1 {[%clk
00:00:33]} {[%emt 00:00:29]} Rc6 {[%clk 00:24:22]} {[%emt 00:02:56]} 37. Be5
{[%clk 00:00:32]} {[%emt 00:00:31]} Qb4 {[%clk 00:23:17]} {[%emt 00:01:35]} 38.
Red1 {[%clk 00:00:31]} {[%emt 00:00:32]} Qe4 {[%clk 00:23:14]} {[%emt
00:00:33]} 39. h5 {[%clk 00:00:34]} {[%emt 00:00:27]} Rd8 {[%clk 00:22:30]}
{[%emt 00:01:13]} 40. hxg6 {[%clk 00:00:41]} {[%emt 00:00:23]} hxg6 {[%clk
00:22:19]} {[%emt 00:00:42]} 41. Qh2 {[%clk 00:00:32]} {[%emt 00:00:39]} Ng7
{[%clk 00:18:11]} {[%emt 00:04:38]} 42. Qh6 {[%clk 00:00:35]} {[%emt 00:00:27]}
Ne8 {[%clk 00:16:16]} {[%emt 00:02:25]} 43. Qh8+ {[%clk 00:00:36]} {[%emt
00:00:29]} Kf7 {[%clk 00:16:39]} {[%emt 00:00:06]} 44. Qh7+ {[%clk 00:00:31]}
{[%emt 00:00:36]} Ke6 {[%clk 00:16:38]} {[%emt 00:00:30]} 45. Qxg6+ {[%clk
00:00:37]} {[%emt 00:00:24]} Kxe5 {[%clk 00:16:40]} {[%emt 00:00:29]} 46. Qg3+
{[%clk 00:00:44]} {[%emt 00:00:23]} Ke6 {[%clk 00:16:50]} {[%emt 00:00:19]} 47.
Qg8+ {[%clk 00:00:37]} {[%emt 00:00:37]} Ke7 {[%clk 00:13:13]} {[%emt
00:04:07]} 48. Qh7+ {[%clk 00:00:48]} {[%emt 00:00:18]} Kf8 {[%clk 00:11:46]}
{[%emt 00:01:57]} 49. Qh8+ {[%clk 00:00:37]} {[%emt 00:00:42]} Kf7 {[%clk
00:11:39]} {[%emt 00:00:37]} 50. Qh5+ {[%clk 00:00:32]} {[%emt 00:00:38]} Rg6
{[%clk 00:11:10]} {[%emt 00:00:55]} 0-1

[ePGN "0.1;DGT LiveChess/2.2.7"]

[Event "Weekend I 2025"]
[Site "Uppsala, Sweden"]
[Date "2025.06.27"]
[Round "1.1"]
[White "Carlsson, Gustav"]
[Black "Nilsson, Joakim"]
[Result "0-1"]
[TimeControl "90 min + increment of 30 sec starting move 1"]
[BlackTitle "FM"]
[WhiteFideId "1734148"]
[BlackFideId "1723383"]
[WhiteElo "2068"]
[BlackElo "2208"]

1. c4 {[%clk 01:30:55]} {[%emt 00:00:04]} e5 {[%clk 01:30:54]} {[%emt
00:00:07]} 2. g3 {[%clk 01:31:14]} {[%emt 00:00:11]} c6 {[%clk 01:31:19]}
{[%emt 00:00:05]} 3. Bg2 {[%clk 01:28:37]} {[%emt 00:03:07]} d5 {[%clk
01:31:40]} {[%emt 00:00:09]} 4. cxd5 {[%clk 01:28:33]} {[%emt 00:00:34]} cxd5
{[%clk 01:32:04]} {[%emt 00:00:06]} 5. d4 {[%clk 01:27:12]} {[%emt 00:01:51]}
e4 {[%clk 01:32:28]} {[%emt 00:00:07]} 6. Nc3 {[%clk 01:26:56]} {[%emt
00:00:46]} Nf6 {[%clk 01:32:50]} {[%emt 00:00:07]} 7. Bg5 {[%clk 01:24:54]}
{[%emt 00:02:32]} Nbd7 {[%clk 01:33:08]} {[%emt 00:00:13]} 8. f3 {[%clk
01:18:38]} {[%emt 00:06:45]} Bb4 {[%clk 01:27:37]} {[%emt 00:06:01]} 9. Qb3
{[%clk 01:07:23]} {[%emt 00:11:45]} Qb6 {[%clk 01:18:19]} {[%emt 00:09:48]} 10.
Kf1 {[%clk 00:39:53]} {[%emt 00:27:59]} O-O {[%clk 01:11:04]} {[%emt 00:07:46]}
11. Nxd5 {[%clk 00:32:10]} {[%emt 00:08:13]} Nxd5 {[%clk 01:11:26]} {[%emt
00:00:08]} 12. Qxd5 {[%clk 00:32:29]} {[%emt 00:00:11]} h6 {[%clk 01:11:47]}
{[%emt 00:00:09]} 13. a3 {[%clk 00:23:28]} {[%emt 00:09:30]} hxg5 {[%clk
01:08:17]} {[%emt 00:04:01]} 14. axb4 {[%clk 00:23:43]} {[%emt 00:00:16]} Qxb4
{[%clk 01:08:21]} {[%emt 00:00:25]} 15. Qxe4 {[%clk 00:13:08]} {[%emt
00:11:05]} Qxb2 {[%clk 01:07:49]} {[%emt 00:01:03]} 16. Rb1 {[%clk 00:13:30]}
{[%emt 00:00:07]} Qc3 {[%clk 01:07:22]} {[%emt 00:00:57]} 17. Kf2 {[%clk
00:11:41]} {[%emt 00:02:19]} Nf6 {[%clk 01:06:43]} {[%emt 00:01:08]} 18. Qe3
{[%clk 00:11:59]} {[%emt 00:00:12]} Qc2 {[%clk 01:06:37]} {[%emt 00:00:36]} 19.
Nh3 {[%clk 00:11:08]} {[%emt 00:01:21]} Re8 {[%clk 01:00:59]} {[%emt 00:06:08]}
20. Rhc1 {[%clk 00:09:14]} {[%emt 00:02:25]} Qf5 {[%clk 00:53:52]} {[%emt
00:07:35]} 21. Qb3 {[%clk 00:07:43]} {[%emt 00:02:02]} Ng4+ {[%clk 00:45:36]}
{[%emt 00:08:46]} 22. Kg1 {[%clk 00:07:25]} {[%emt 00:00:49]} Ne3 {[%clk
00:45:58]} {[%emt 00:00:08]} 23. Rc5 {[%clk 00:06:00]} {[%emt 00:01:56]} Qf6
{[%clk 00:44:55]} {[%emt 00:01:31]} 24. Qb2 {[%clk 00:02:24]} {[%emt 00:04:07]}
Bf5 {[%clk 00:38:32]} {[%emt 00:06:52]} 25. Re1 {[%clk 00:02:36]} {[%emt
00:00:18]} Rad8 {[%clk 00:35:53]} {[%emt 00:03:10]} 26. g4 {[%clk 00:02:48]}
{[%emt 00:00:18]} Bg6 {[%clk 00:32:28]} {[%emt 00:03:54]} 27. Nxg5 {[%clk
00:02:35]} {[%emt 00:00:44]} b6 {[%clk 00:28:21]} {[%emt 00:04:38]} 28. Rb5
{[%clk 00:02:24]} {[%emt 00:00:41]} a6 {[%clk 00:27:09]} {[%emt 00:01:41]} 29.
Rxb6 {[%clk 00:02:36]} {[%emt 00:00:19]} Qxg5 {[%clk 00:27:36]} {[%emt
00:00:02]} 30. Rc1 {[%clk 00:02:07]} {[%emt 00:00:59]} Nd5 {[%clk 00:27:17]}
{[%emt 00:00:48]} 31. Rxa6 {[%clk 00:02:12]} {[%emt 00:00:26]} Rxe2 {[%clk
00:27:28]} {[%emt 00:00:19]} 32. Rxg6 {[%clk 00:00:51]} {[%emt 00:01:52]} fxg6
{[%clk 00:27:38]} {[%emt 00:00:20]} 0-1